[Event "Titled Tuesday Blitz September 27 Early 2022"]
[White "Koridze, Lile"]
[Black "Adewumi, Tanitoluwa"]
[WhiteFideId "13612514"]
[BlackFideId "30966396"]
[WhiteElo "2050"]
[BlackElo "2568"]
[Result "0-1"]
[Round "07"]
[TimeControl "180+1"]
[Date "2022.09.27"]
[WhiteClock "0:00:03"]
[BlackClock "0:00:17"]

1. d4 {[%clk 0:02:08]}  Nf6 {[%clk 0:02:59]} 2. c4 {[%clk 0:02:08]}  e6 {[%clk 0:02:59]} 3. Nc3 {[%clk 0:02:08]}  Bb4 {[%clk 0:02:59]} 4. e3 {[%clk 0:02:08]}  O-O {[%clk 0:02:59]} 5. Bd3 {[%clk 0:02:09]}  d5 {[%clk 0:02:59]} 6. Ne2 {[%clk 0:02:09]}  b6 {[%clk 0:02:59]} 7. O-O {[%clk 0:02:09]}  dxc4 {[%clk 0:02:59]} 8. Bxc4 {[%clk 0:02:09]}  Bb7 {[%clk 0:03:00]} 9. Qc2 {[%clk 0:02:07]}  c5 {[%clk 0:03:00]} 10. a3 {[%clk 0:02:07]}  cxd4 {[%clk 0:02:59]} 11. axb4 {[%clk 0:02:07]}  dxc3 {[%clk 0:02:59]} 12. bxc3 {[%clk 0:02:08]}  Qc7 {[%clk 0:02:56]} 13. Bd3 {[%clk 0:02:07]}  Ng4 {[%clk 0:02:56]} 14. Ng3 {[%clk 0:01:47]}  h5 {[%clk 0:02:52]} 15. h3 {[%clk 0:01:46]}  h4 {[%clk 0:02:50]} 16. hxg4 {[%clk 0:01:37]}  hxg3 {[%clk 0:02:47]} 17. f3 {[%clk 0:01:37]}  Qd8 {[%clk 0:02:38]} 18. Rd1 {[%clk 0:01:09]}  Qh4 {[%clk 0:02:29]} 19. e4 {[%clk 0:00:52]}  Qh2+ {[%clk 0:02:23]} 20. Kf1 {[%clk 0:00:48]}  f5 {[%clk 0:02:08]} 21. gxf5 {[%clk 0:00:11]}  exf5 {[%clk 0:01:40]} 22. Be3 {[%clk 0:00:09]}  Qh1+ {[%clk 0:01:04]} 23. Bg1 {[%clk 0:00:08]}  Nc6 {[%clk 0:00:58]} 24. exf5 {[%clk 0:00:05]}  Ne5 {[%clk 0:00:57]} 25. Be4 {[%clk 0:00:05]}  Bxe4 {[%clk 0:00:47]} 26. Qxe4 {[%clk 0:00:06]}  Rae8 {[%clk 0:00:44]} 27. Re1 {[%clk 0:00:05]}  Kh8 {[%clk 0:00:31]} 28. Rad1 {[%clk 0:00:03]}  g6 {[%clk 0:00:20]} 29. fxg6 {[%clk 0:00:03]}  Nxf3 {[%clk 0:00:17]} 30. g7+ {[%clk 0:00:03]}  Kxg7 {[%clk 0:00:16]} 31. Qg4+ {[%clk 0:00:03]}  Ng5+ {[%clk 0:00:16]} 32. Qf3 {[%clk 0:00:03]}  Rxf3+ {[%clk 0:00:16]} 33. gxf3 {[%clk 0:00:03]}  Qxf3+ {[%clk 0:00:17]} 34. Bf2 {[%clk 0:00:03]}  Qxf2# {[%clk 0:00:17]} 0-1


[Site "https://www.chess.com"]

[Event "Titled Tuesday Blitz September 27 Early 2022"]
[White "Krishnan, Varun"]
[Black "Bowden, Karl"]
[WhiteFideId "5054508"]
[BlackFideId "400548"]
[WhiteElo "2623"]
[BlackElo "2466"]
[Result "0-1"]
[Round "07"]
[TimeControl "180+1"]
[Date "2022.09.27"]
[WhiteClock "0:01:04"]
[BlackClock "0:00:09"]

1. e4 {[%clk 0:02:55]}  e5 {[%clk 0:03:00]} 2. Nf3 {[%clk 0:02:51]}  d5 {[%clk 0:02:58]} 3. Nxe5 {[%clk 0:02:50]}  Bd6 {[%clk 0:02:57]} 4. d4 {[%clk 0:02:49]}  dxe4 {[%clk 0:02:57]} 5. Bf4 {[%clk 0:02:47]}  Ne7 {[%clk 0:02:56]} 6. Bc4 {[%clk 0:02:46]}  Bxe5 {[%clk 0:02:55]} 7. Bxe5 {[%clk 0:02:43]}  O-O {[%clk 0:02:55]} 8. c3 {[%clk 0:02:40]}  Nd7 {[%clk 0:02:28]} 9. Bg3 {[%clk 0:02:36]}  Nf5 {[%clk 0:02:25]} 10. O-O {[%clk 0:02:34]}  Nf6 {[%clk 0:02:22]} 11. Re1 {[%clk 0:02:31]}  Nxg3 {[%clk 0:02:19]} 12. hxg3 {[%clk 0:02:30]}  Re8 {[%clk 0:02:08]} 13. Nd2 {[%clk 0:02:29]}  Be6 {[%clk 0:02:06]} 14. Bxe6 {[%clk 0:02:27]}  Rxe6 {[%clk 0:02:05]} 15. Qc2 {[%clk 0:02:27]}  Qd5 {[%clk 0:02:03]} 16. Qb3 {[%clk 0:02:20]}  Qg5 {[%clk 0:01:33]} 17. Nc4 {[%clk 0:02:04]}  b6 {[%clk 0:01:16]} 18. Ne5 {[%clk 0:02:00]}  Rae8 {[%clk 0:01:07]} 19. a4 {[%clk 0:01:52]}  Ng4 {[%clk 0:00:45]} 20. Rxe4 {[%clk 0:01:44]}  Nxe5 {[%clk 0:00:22]} 21. dxe5 {[%clk 0:01:33]}  Qf5 {[%clk 0:00:22]} 22. Rae1 {[%clk 0:01:24]}  Rxe5 {[%clk 0:00:21]} 23. Qb5 {[%clk 0:01:13]}  Qxe4 {[%clk 0:00:16]} 24. Rxe4 {[%clk 0:01:12]}  Rxe4 {[%clk 0:00:16]} 25. Qa6 {[%clk 0:01:10]}  R8e6 {[%clk 0:00:10]} 26. Qxa7 {[%clk 0:01:06]}  Re1+ {[%clk 0:00:09]} 27. Kh2 {[%clk 0:01:04]}  Rh6# {[%clk 0:00:09]} 0-1


[Site "https://www.chess.com"]

[Event "Titled Tuesday Blitz September 27 Early 2022"]
[White "Kuchava, Ana"]
[Black "Ribeiro, Matheus Mendes Domingues"]
[WhiteFideId "13605348"]
[BlackFideId "324226923"]
[WhiteElo "1955"]
[BlackElo "2047"]
[Result "0-1"]
[Round "07"]
[TimeControl "180+1"]
[Date "2022.09.27"]
[WhiteClock "0:00:04"]
[BlackClock "0:00:07"]

1. d4 {[%clk 0:03:00]}  d5 {[%clk 0:02:48]} 2. Nf3 {[%clk 0:02:57]}  e6 {[%clk 0:02:49]} 3. c4 {[%clk 0:02:50]}  Nf6 {[%clk 0:02:47]} 4. Nc3 {[%clk 0:02:49]}  Be7 {[%clk 0:02:47]} 5. Bf4 {[%clk 0:02:46]}  O-O {[%clk 0:02:47]} 6. e3 {[%clk 0:02:42]}  b6 {[%clk 0:02:46]} 7. cxd5 {[%clk 0:02:22]}  Nxd5 {[%clk 0:02:47]} 8. Nxd5 {[%clk 0:02:21]}  exd5 {[%clk 0:02:47]} 9. Bd3 {[%clk 0:02:20]}  h6 {[%clk 0:02:44]} 10. O-O {[%clk 0:02:19]}  Be6 {[%clk 0:02:43]} 11. Rc1 {[%clk 0:02:17]}  c5 {[%clk 0:02:43]} 12. dxc5 {[%clk 0:02:06]}  bxc5 {[%clk 0:02:44]} 13. Bb1 {[%clk 0:02:01]}  Nc6 {[%clk 0:02:43]} 14. Qc2 {[%clk 0:01:44]}  f5 {[%clk 0:02:42]} 15. Qa4 {[%clk 0:01:41]}  Qb6 {[%clk 0:02:38]} 16. Rfd1 {[%clk 0:01:37]}  Bf6 {[%clk 0:02:33]} 17. Bd6 {[%clk 0:01:28]}  Rfc8 {[%clk 0:02:26]} 18. Bxc5 {[%clk 0:01:27]}  Qxb2 {[%clk 0:02:26]} 19. Ba3 {[%clk 0:01:11]}  Qb6 {[%clk 0:02:21]} 20. h3 {[%clk 0:01:01]}  a5 {[%clk 0:02:20]} 21. Bd3 {[%clk 0:00:52]}  Nb4 {[%clk 0:02:18]} 22. Bb1 {[%clk 0:00:40]}  Rd8 {[%clk 0:01:30]} 23. Bxb4 {[%clk 0:00:36]}  axb4 {[%clk 0:01:30]} 24. Qc6 {[%clk 0:00:36]}  Qxc6 {[%clk 0:01:27]} 25. Rxc6 {[%clk 0:00:37]}  Kf7 {[%clk 0:01:27]} 26. Nd4 {[%clk 0:00:36]}  Bxd4 {[%clk 0:01:25]} 27. Rxd4 {[%clk 0:00:37]}  Rab8 {[%clk 0:01:22]} 28. Rc7+ {[%clk 0:00:34]}  Kf6 {[%clk 0:01:20]} 29. g4 {[%clk 0:00:30]}  fxg4 {[%clk 0:01:17]} 30. hxg4 {[%clk 0:00:31]}  Rdc8 {[%clk 0:01:17]} 31. Rxc8 {[%clk 0:00:30]}  Rxc8 {[%clk 0:01:15]} 32. Rxb4 {[%clk 0:00:30]}  Bxg4 {[%clk 0:01:12]} 33. Rxg4 {[%clk 0:00:29]}  Rc1+ {[%clk 0:01:11]} 34. Kg2 {[%clk 0:00:29]}  Rxb1 {[%clk 0:01:11]} 35. Ra4 {[%clk 0:00:25]}  g5 {[%clk 0:01:08]} 36. Ra6+ {[%clk 0:00:24]}  Kg7 {[%clk 0:01:06]} 37. Kf3 {[%clk 0:00:21]}  h5 {[%clk 0:01:04]} 38. a4 {[%clk 0:00:19]}  Rb4 {[%clk 0:01:02]} 39. a5 {[%clk 0:00:19]}  Ra4 {[%clk 0:01:01]} 40. Ra7+ {[%clk 0:00:18]}  Kg6 {[%clk 0:01:02]} 41. a6 {[%clk 0:00:18]}  h4 {[%clk 0:00:57]} 42. Ra8 {[%clk 0:00:17]}  g4+ {[%clk 0:00:57]} 43. Kg2 {[%clk 0:00:17]}  Ra2 {[%clk 0:00:52]} 44. a7 {[%clk 0:00:17]}  Kg7 {[%clk 0:00:52]} 45. Rd8 {[%clk 0:00:14]}  Rxa7 {[%clk 0:00:52]} 46. Rxd5 {[%clk 0:00:15]}  Kg6 {[%clk 0:00:52]} 47. Rd4 {[%clk 0:00:10]}  Kf5 {[%clk 0:00:51]} 48. Rd5+ {[%clk 0:00:10]}  Kf6 {[%clk 0:00:52]} 49. Rd4 {[%clk 0:00:11]}  Rg7 {[%clk 0:00:52]} 50. Rf4+ {[%clk 0:00:09]}  Kg5 {[%clk 0:00:43]} 51. Rf8 {[%clk 0:00:09]}  Ra7 {[%clk 0:00:32]} 52. Rg8+ {[%clk 0:00:08]}  Kh5 {[%clk 0:00:32]} 53. Rh8+ {[%clk 0:00:09]}  Kg5 {[%clk 0:00:32]} 54. Rg8+ {[%clk 0:00:09]}  Kf5 {[%clk 0:00:32]} 55. Rf8+ {[%clk 0:00:09]}  Ke4 {[%clk 0:00:33]} 56. Rh8 {[%clk 0:00:09]}  h3+ {[%clk 0:00:22]} 57. Kg3 {[%clk 0:00:10]}  Rg7 {[%clk 0:00:23]} 58. Re8+ {[%clk 0:00:09]}  Kf5 {[%clk 0:00:22]} 59. Rf8+ {[%clk 0:00:09]}  Kg5 {[%clk 0:00:23]} 60. Rf4 {[%clk 0:00:09]}  Kh5 {[%clk 0:00:23]} 61. Rf5+ {[%clk 0:00:09]}  Rg5 {[%clk 0:00:24]} 62. Rf8 {[%clk 0:00:07]}  Rg6 {[%clk 0:00:16]} 63. Rh8+ {[%clk 0:00:07]}  Kg5 {[%clk 0:00:16]} 64. Rf8 {[%clk 0:00:07]}  Rh6 {[%clk 0:00:16]} 65. Rg8+ {[%clk 0:00:07]}  Kf5 {[%clk 0:00:16]} 66. Kh2 {[%clk 0:00:06]}  Ra6 {[%clk 0:00:10]} 67. Rf8+ {[%clk 0:00:06]}  Ke4 {[%clk 0:00:10]} 68. Rf4+ {[%clk 0:00:06]}  Kd3 {[%clk 0:00:11]} 69. Rxg4 {[%clk 0:00:07]}  Ke2 {[%clk 0:00:11]} 70. Kxh3 {[%clk 0:00:07]}  Kxf2 {[%clk 0:00:12]} 71. e4 {[%clk 0:00:08]}  Kf3 {[%clk 0:00:12]} 72. Rh4 {[%clk 0:00:07]}  Ra1 {[%clk 0:00:12]} 73. Kh2 {[%clk 0:00:06]}  Ra2+ {[%clk 0:00:12]} 74. Kh3 {[%clk 0:00:07]}  Rd2 {[%clk 0:00:07]} 75. e5 {[%clk 0:00:06]}  Re2 {[%clk 0:00:07]} 76. Rh5 {[%clk 0:00:04]}  Re1 {[%clk 0:00:07]} 77. Kh4 {[%clk 0:00:04]}  Kf4 {[%clk 0:00:07]} 0-1


[Site "https://www.chess.com"]

[Event "Titled Tuesday Blitz September 27 Early 2022"]
[White "Kukula, Pawel"]
[Black "Bettalli, Francesco"]
[WhiteFideId "1115081"]
[BlackFideId "2816453"]
[WhiteElo "2062"]
[BlackElo "2216"]
[Result "1-0"]
[Round "07"]
[TimeControl "180+1"]
[Date "2022.09.27"]
[WhiteClock "0:01:06"]
[BlackClock "0:00:46"]

1. d4 {[%clk 0:02:57]}  e5 {[%clk 0:02:52]} 2. dxe5 {[%clk 0:02:56]}  Nc6 {[%clk 0:02:52]} 3. Nf3 {[%clk 0:02:56]}  Qe7 {[%clk 0:02:52]} 4. Bf4 {[%clk 0:02:42]}  Qb4+ {[%clk 0:02:41]} 5. Bd2 {[%clk 0:02:42]}  Qxb2 {[%clk 0:02:39]} 6. Nc3 {[%clk 0:02:41]}  Bb4 {[%clk 0:02:39]} 7. Rb1 {[%clk 0:02:40]}  Qa3 {[%clk 0:02:38]} 8. Nd5 {[%clk 0:02:12]}  Bxd2+ {[%clk 0:02:26]} 9. Qxd2 {[%clk 0:02:13]}  Qxa2 {[%clk 0:02:21]} 10. Rd1 {[%clk 0:02:08]}  Kd8 {[%clk 0:02:19]} 11. Qg5+ {[%clk 0:02:07]}  Nge7 {[%clk 0:02:17]} 12. e4 {[%clk 0:01:34]}  Qxc2 {[%clk 0:02:02]} 13. Bd3 {[%clk 0:01:29]}  Qa2 {[%clk 0:01:36]} 14. O-O {[%clk 0:01:28]}  b6 {[%clk 0:01:26]} 15. Bb5 {[%clk 0:01:25]}  h6 {[%clk 0:01:00]} 16. Qh4 {[%clk 0:01:17]}  g5 {[%clk 0:00:59]} 17. Nxg5 {[%clk 0:01:16]}  Rg8 {[%clk 0:00:49]} 18. Nxf7+ {[%clk 0:01:07]}  Ke8 {[%clk 0:00:49]} 19. Nxc7+ {[%clk 0:01:06]}  Kxf7 {[%clk 0:00:46]} 20. Qf6# {[%clk 0:01:06]} 1-0


[Site "https://www.chess.com"]

[Event "Titled Tuesday Blitz September 27 Early 2022"]
[White "Lakshmi C"]
[Black "Tarnowska, Aleksandra"]
[WhiteFideId "25035347"]
[BlackFideId "1180967"]
[WhiteElo "1775"]
[BlackElo "1700"]
[Result "1-0"]
[Round "07"]
[TimeControl "180+1"]
[Date "2022.09.27"]
[WhiteClock "0:00:38"]
[BlackClock "0:00:02"]

1. e4 {[%clk 0:02:51]}  c5 {[%clk 0:02:59]} 2. Nf3 {[%clk 0:02:50]}  e6 {[%clk 0:03:00]} 3. d4 {[%clk 0:02:50]}  cxd4 {[%clk 0:03:01]} 4. Nxd4 {[%clk 0:02:50]}  a6 {[%clk 0:03:01]} 5. c4 {[%clk 0:02:50]}  Nf6 {[%clk 0:03:01]} 6. Nc3 {[%clk 0:02:50]}  Bb4 {[%clk 0:03:01]} 7. Bd3 {[%clk 0:02:33]}  Qc7 {[%clk 0:03:01]} 8. Bd2 {[%clk 0:02:27]}  Nc6 {[%clk 0:02:58]} 9. Nxc6 {[%clk 0:02:26]}  dxc6 {[%clk 0:02:54]} 10. Na4 {[%clk 0:02:24]}  Bxd2+ {[%clk 0:02:52]} 11. Qxd2 {[%clk 0:02:24]}  O-O {[%clk 0:02:51]} 12. O-O {[%clk 0:02:22]}  e5 {[%clk 0:02:10]} 13. h3 {[%clk 0:02:16]}  Be6 {[%clk 0:02:01]} 14. Nc5 {[%clk 0:02:10]}  Qe7 {[%clk 0:01:55]} 15. Nxe6 {[%clk 0:02:05]}  Qxe6 {[%clk 0:01:56]} 16. Qe3 {[%clk 0:02:03]}  Rfd8 {[%clk 0:01:55]} 17. Rad1 {[%clk 0:01:56]}  Nh5 {[%clk 0:01:37]} 18. b3 {[%clk 0:01:54]}  Nf4 {[%clk 0:01:33]} 19. Bc2 {[%clk 0:01:54]}  Qg6 {[%clk 0:01:30]} 20. Qf3 {[%clk 0:01:54]}  h6 {[%clk 0:01:13]} 21. Kh2 {[%clk 0:01:53]}  Ne6 {[%clk 0:01:13]} 22. Qe3 {[%clk 0:01:48]}  Nd4 {[%clk 0:01:12]} 23. Bb1 {[%clk 0:01:47]}  Ne6 {[%clk 0:01:02]} 24. g3 {[%clk 0:01:44]}  Qh5 {[%clk 0:00:44]} 25. Bc2 {[%clk 0:01:39]}  Nd4 {[%clk 0:00:40]} 26. Bd3 {[%clk 0:01:39]}  Nf3+ {[%clk 0:00:37]} 27. Kg2 {[%clk 0:01:39]}  Ng5 {[%clk 0:00:33]} 28. Rh1 {[%clk 0:01:34]}  Rd7 {[%clk 0:00:31]} 29. f4 {[%clk 0:01:32]}  exf4 {[%clk 0:00:29]} 30. gxf4 {[%clk 0:01:32]}  Ne6 {[%clk 0:00:27]} 31. Be2 {[%clk 0:01:22]}  Qg6+ {[%clk 0:00:26]} 32. Kh2 {[%clk 0:01:22]}  Qf6 {[%clk 0:00:23]} 33. Rhf1 {[%clk 0:01:16]}  Rxd1 {[%clk 0:00:20]} 34. Bxd1 {[%clk 0:01:16]}  Rd8 {[%clk 0:00:19]} 35. e5 {[%clk 0:01:12]}  Qf5 {[%clk 0:00:16]} 36. Bg4 {[%clk 0:01:00]}  Qc2+ {[%clk 0:00:14]} 37. Rf2 {[%clk 0:00:59]}  Qd3 {[%clk 0:00:07]} 38. Qe1 {[%clk 0:00:49]}  Nd4 {[%clk 0:00:04]} 39. f5 {[%clk 0:00:46]}  Re8 {[%clk 0:00:02]} 40. e6 {[%clk 0:00:42]}  Qc3 {[%clk 0:00:02]} 41. Qxc3 {[%clk 0:00:38]} 1-0


[Site "https://www.chess.com"]

[Event "Titled Tuesday Blitz September 27 Early 2022"]
[White "Lazavik, Denis"]
[Black "Zelbel, Patrick"]
[WhiteFideId "13515110"]
[BlackFideId "24624322"]
[WhiteElo "2437"]
[BlackElo "2474"]
[Result "1-0"]
[Round "07"]
[TimeControl "180+1"]
[Date "2022.09.27"]
[WhiteClock "0:00:34"]
[BlackClock "0:00:02"]

1. d4 {[%clk 0:03:00]}  Nf6 {[%clk 0:02:58]} 2. c4 {[%clk 0:03:01]}  c5 {[%clk 0:02:58]} 3. d5 {[%clk 0:03:01]}  b5 {[%clk 0:02:58]} 4. cxb5 {[%clk 0:03:01]}  a6 {[%clk 0:02:58]} 5. e3 {[%clk 0:03:01]}  e6 {[%clk 0:02:49]} 6. dxe6 {[%clk 0:02:52]}  fxe6 {[%clk 0:02:50]} 7. Nf3 {[%clk 0:02:49]}  Bb7 {[%clk 0:02:49]} 8. bxa6 {[%clk 0:02:46]}  Nxa6 {[%clk 0:02:50]} 9. Be2 {[%clk 0:02:44]}  Be7 {[%clk 0:02:47]} 10. O-O {[%clk 0:02:44]}  O-O {[%clk 0:02:47]} 11. b3 {[%clk 0:02:40]}  d5 {[%clk 0:02:42]} 12. Bb2 {[%clk 0:02:39]}  Bd6 {[%clk 0:02:38]} 13. Nbd2 {[%clk 0:02:37]}  Qc7 {[%clk 0:02:36]} 14. g3 {[%clk 0:02:34]}  e5 {[%clk 0:02:24]} 15. e4 {[%clk 0:02:31]}  Nxe4 {[%clk 0:01:55]} 16. Nxe4 {[%clk 0:02:25]}  dxe4 {[%clk 0:01:55]} 17. Nd2 {[%clk 0:02:01]}  Qc6 {[%clk 0:01:51]} 18. Nc4 {[%clk 0:01:58]}  e3 {[%clk 0:01:46]} 19. f3 {[%clk 0:01:58]}  Rad8 {[%clk 0:01:38]} 20. Qc1 {[%clk 0:01:45]}  Nb4 {[%clk 0:01:27]} 21. Na5 {[%clk 0:01:35]}  Qc7 {[%clk 0:01:20]} 22. Nxb7 {[%clk 0:01:35]}  Qxb7 {[%clk 0:01:21]} 23. Qc4+ {[%clk 0:01:29]}  Kh8 {[%clk 0:01:20]} 24. a4 {[%clk 0:01:14]}  Nc6 {[%clk 0:01:06]} 25. Qe4 {[%clk 0:01:03]}  Qb6 {[%clk 0:00:44]} 26. Qxe3 {[%clk 0:00:55]}  Nd4 {[%clk 0:00:44]} 27. a5 {[%clk 0:00:50]}  Qxb3 {[%clk 0:00:33]} 28. Qxb3 {[%clk 0:00:46]}  Nxb3 {[%clk 0:00:34]} 29. Ra4 {[%clk 0:00:45]}  Bc7 {[%clk 0:00:21]} 30. Bc3 {[%clk 0:00:38]}  Nd4 {[%clk 0:00:17]} 31. Bc4 {[%clk 0:00:36]}  Nxf3+ {[%clk 0:00:16]} 32. Kg2 {[%clk 0:00:35]}  e4 {[%clk 0:00:11]} 33. a6 {[%clk 0:00:35]}  Nd4 {[%clk 0:00:07]} 34. Rxf8+ {[%clk 0:00:33]}  Rxf8 {[%clk 0:00:08]} 35. a7 {[%clk 0:00:34]}  Ra8 {[%clk 0:00:02]} 36. Bd5 {[%clk 0:00:34]} 1-0


[Site "https://www.chess.com"]

[Event "Titled Tuesday Blitz September 27 Early 2022"]
[White "Machidon, Cristi"]
[Black "Nigmatov, Ortik"]
[WhiteFideId "13904590"]
[BlackFideId "14202131"]
[WhiteElo "2632"]
[BlackElo "2771"]
[Result "0-1"]
[Round "07"]
[TimeControl "180+1"]
[Date "2022.09.27"]
[WhiteClock "0:00:04"]
[BlackClock "0:00:06"]

1. d4 {[%clk 0:03:00]}  Nf6 {[%clk 0:02:59]} 2. c4 {[%clk 0:03:00]}  g6 {[%clk 0:02:59]} 3. Nc3 {[%clk 0:03:00]}  Bg7 {[%clk 0:02:59]} 4. e4 {[%clk 0:03:00]}  d6 {[%clk 0:02:59]} 5. Be2 {[%clk 0:03:00]}  O-O {[%clk 0:02:59]} 6. Bg5 {[%clk 0:03:00]}  c5 {[%clk 0:02:58]} 7. d5 {[%clk 0:03:01]}  h6 {[%clk 0:02:58]} 8. Be3 {[%clk 0:03:01]}  e6 {[%clk 0:02:58]} 9. Qd2 {[%clk 0:03:02]}  exd5 {[%clk 0:02:58]} 10. exd5 {[%clk 0:03:02]}  Kh7 {[%clk 0:02:54]} 11. h3 {[%clk 0:03:03]}  Re8 {[%clk 0:02:52]} 12. Bd3 {[%clk 0:03:03]}  Nbd7 {[%clk 0:02:49]} 13. Nf3 {[%clk 0:03:03]}  Ne5 {[%clk 0:02:21]} 14. Nxe5 {[%clk 0:03:02]}  Rxe5 {[%clk 0:02:21]} 15. O-O {[%clk 0:03:00]}  Nh5 {[%clk 0:02:18]} 16. Kh2 {[%clk 0:02:44]}  f5 {[%clk 0:02:17]} 17. f4 {[%clk 0:02:36]}  Re8 {[%clk 0:02:11]} 18. Rae1 {[%clk 0:02:28]}  Bd7 {[%clk 0:02:05]} 19. Re2 {[%clk 0:01:27]}  Qh4 {[%clk 0:01:44]} 20. Rf3 {[%clk 0:01:20]}  Re7 {[%clk 0:01:37]} 21. Bf2 {[%clk 0:01:09]}  Rxe2 {[%clk 0:01:32]} 22. Nxe2 {[%clk 0:01:04]}  Qf6 {[%clk 0:01:32]} 23. b3 {[%clk 0:01:02]}  Re8 {[%clk 0:01:20]} 24. Re3 {[%clk 0:01:02]}  Rf8 {[%clk 0:01:18]} 25. g3 {[%clk 0:00:54]}  Kh8 {[%clk 0:01:14]} 26. Ng1 {[%clk 0:00:53]}  g5 {[%clk 0:01:12]} 27. fxg5 {[%clk 0:00:47]}  hxg5 {[%clk 0:01:13]} 28. Qd1 {[%clk 0:00:45]}  Qh6 {[%clk 0:01:11]} 29. Re7 {[%clk 0:00:42]}  Bc8 {[%clk 0:01:06]} 30. Qe2 {[%clk 0:00:23]}  Nf6 {[%clk 0:01:01]} 31. Kg2 {[%clk 0:00:23]}  f4 {[%clk 0:01:01]} 32. g4 {[%clk 0:00:22]}  f3+ {[%clk 0:00:51]} 33. Nxf3 {[%clk 0:00:14]}  Nxg4 {[%clk 0:00:51]} 34. Re8 {[%clk 0:00:14]}  Nxf2 {[%clk 0:00:41]} 35. Rxf8+ {[%clk 0:00:14]}  Bxf8 {[%clk 0:00:42]} 36. Kxf2 {[%clk 0:00:14]}  Bxh3 {[%clk 0:00:33]} 37. Kg3 {[%clk 0:00:11]}  Bd7 {[%clk 0:00:29]} 38. Qe4 {[%clk 0:00:07]}  Bg7 {[%clk 0:00:18]} 39. Kf2 {[%clk 0:00:04]}  g4 {[%clk 0:00:17]} 40. Ne1 {[%clk 0:00:03]}  Bd4+ {[%clk 0:00:17]} 41. Ke2 {[%clk 0:00:03]}  g3 {[%clk 0:00:16]} 42. Ng2 {[%clk 0:00:03]}  Qh5+ {[%clk 0:00:13]} 43. Kd2 {[%clk 0:00:03]}  Be5 {[%clk 0:00:07]} 44. Qh4 {[%clk 0:00:02]}  Qxh4 {[%clk 0:00:07]} 45. Nxh4 {[%clk 0:00:03]}  Kg7 {[%clk 0:00:08]} 46. Ke2 {[%clk 0:00:02]}  Kf6 {[%clk 0:00:07]} 47. Kf3 {[%clk 0:00:01]}  Kg5 {[%clk 0:00:04]} 48. Ng6 {[%clk 0:00:01]}  Bg4+ {[%clk 0:00:05]} 49. Kg2 {[%clk 0:00:02]}  Bf5 {[%clk 0:00:03]} 50. Bxf5 {[%clk 0:00:01]}  Kxf5 {[%clk 0:00:03]} 51. Ne7+ {[%clk 0:00:01]}  Ke4 {[%clk 0:00:03]} 52. Nc8 {[%clk 0:00:02]}  Kd4 {[%clk 0:00:03]} 53. Nxa7 {[%clk 0:00:02]}  Kc3 {[%clk 0:00:04]} 54. Nb5+ {[%clk 0:00:02]}  Kb2 {[%clk 0:00:04]} 55. a4 {[%clk 0:00:01]}  Kxb3 {[%clk 0:00:05]} 56. a5 {[%clk 0:00:02]}  Kxc4 {[%clk 0:00:05]} 57. Nc7 {[%clk 0:00:02]}  Kb4 {[%clk 0:00:04]} 58. a6 {[%clk 0:00:03]}  bxa6 {[%clk 0:00:05]} 59. Nxa6+ {[%clk 0:00:03]}  Kb3 {[%clk 0:00:05]} 60. Nc7 {[%clk 0:00:04]}  c4 {[%clk 0:00:06]} 0-1


[Site "https://www.chess.com"]

[Event "Titled Tuesday Blitz September 27 Early 2022"]
[White "Mahdavi, Reza"]
[Black "Kamsky, Gata"]
[WhiteFideId "12595926"]
[BlackFideId "2000024"]
[WhiteElo "2240"]
[BlackElo "2666"]
[Result "1/2-1/2"]
[Round "07"]
[TimeControl "180+1"]
[Date "2022.09.27"]
[WhiteClock "0:02:35"]
[BlackClock "0:01:14"]

1. e4 {[%clk 0:03:00]}  e5 {[%clk 0:02:51]} 2. Nf3 {[%clk 0:02:59]}  Nc6 {[%clk 0:02:46]} 3. Nc3 {[%clk 0:02:59]}  Nf6 {[%clk 0:02:39]} 4. d4 {[%clk 0:02:56]}  Bb4 {[%clk 0:02:39]} 5. Nxe5 {[%clk 0:02:56]}  Qe7 {[%clk 0:02:36]} 6. Qd3 {[%clk 0:02:53]}  Nxe5 {[%clk 0:02:33]} 7. dxe5 {[%clk 0:02:54]}  Qxe5 {[%clk 0:02:33]} 8. Bd2 {[%clk 0:02:55]}  Bxc3 {[%clk 0:02:08]} 9. Bxc3 {[%clk 0:02:53]}  Qxe4+ {[%clk 0:02:07]} 10. Qxe4+ {[%clk 0:02:54]}  Nxe4 {[%clk 0:02:08]} 11. Bxg7 {[%clk 0:02:54]}  Rg8 {[%clk 0:02:08]} 12. Bh6 {[%clk 0:02:48]}  d5 {[%clk 0:02:00]} 13. f3 {[%clk 0:02:48]}  Nd6 {[%clk 0:01:55]} 14. O-O-O {[%clk 0:02:47]}  c6 {[%clk 0:01:53]} 15. Bf4 {[%clk 0:02:47]}  Ke7 {[%clk 0:01:47]} 16. g4 {[%clk 0:02:45]}  Be6 {[%clk 0:01:17]} 17. Bd3 {[%clk 0:02:35]}  f5 {[%clk 0:01:14]} 1/2-1/2


[Site "https://www.chess.com"]

[Event "Titled Tuesday Blitz September 27 Early 2022"]
[White "Manukian, Artak"]
[Black "Hambleton, Aman"]
[WhiteFideId "13301373"]
[BlackFideId "2606577"]
[WhiteElo "2511"]
[BlackElo "2538"]
[Result "0-1"]
[Round "07"]
[TimeControl "180+1"]
[Date "2022.09.27"]
[WhiteClock "0:00:59"]
[BlackClock "0:00:03"]

1. e4 {[%clk 0:03:00]}  e6 {[%clk 0:02:39]} 2. d4 {[%clk 0:02:59]}  d5 {[%clk 0:02:37]} 3. e5 {[%clk 0:02:59]}  c5 {[%clk 0:02:35]} 4. c3 {[%clk 0:03:00]}  Qb6 {[%clk 0:02:33]} 5. Nf3 {[%clk 0:03:01]}  Bd7 {[%clk 0:02:29]} 6. a3 {[%clk 0:03:01]}  Bb5 {[%clk 0:02:25]} 7. c4 {[%clk 0:03:01]}  Bxc4 {[%clk 0:02:24]} 8. Bxc4 {[%clk 0:03:01]}  dxc4 {[%clk 0:02:24]} 9. O-O {[%clk 0:02:56]}  cxd4 {[%clk 0:02:18]} 10. Nxd4 {[%clk 0:02:51]}  Nc6 {[%clk 0:01:59]} 11. Be3 {[%clk 0:02:28]}  Bc5 {[%clk 0:01:57]} 12. Nxc6 {[%clk 0:02:25]}  Bxe3 {[%clk 0:01:37]} 13. fxe3 {[%clk 0:02:24]}  Qxe3+ {[%clk 0:00:59]} 14. Kh1 {[%clk 0:02:24]}  bxc6 {[%clk 0:00:59]} 15. Nd2 {[%clk 0:02:12]}  Rd8 {[%clk 0:00:42]} 16. Nxc4 {[%clk 0:01:57]}  Rxd1 {[%clk 0:00:39]} 17. Nxe3 {[%clk 0:01:57]}  Rxa1 {[%clk 0:00:37]} 18. Rxa1 {[%clk 0:01:58]}  Ne7 {[%clk 0:00:34]} 19. Rd1 {[%clk 0:01:55]}  Nd5 {[%clk 0:00:34]} 20. Nc4 {[%clk 0:01:54]}  Ke7 {[%clk 0:00:31]} 21. b4 {[%clk 0:01:53]}  f6 {[%clk 0:00:26]} 22. exf6+ {[%clk 0:01:50]}  gxf6 {[%clk 0:00:26]} 23. Na5 {[%clk 0:01:48]}  Rc8 {[%clk 0:00:26]} 24. Rc1 {[%clk 0:01:47]}  Kd7 {[%clk 0:00:17]} 25. Kg1 {[%clk 0:01:45]}  e5 {[%clk 0:00:14]} 26. Kf2 {[%clk 0:01:43]}  h5 {[%clk 0:00:13]} 27. g3 {[%clk 0:01:40]}  f5 {[%clk 0:00:11]} 28. Nb7 {[%clk 0:01:33]}  h4 {[%clk 0:00:08]} 29. gxh4 {[%clk 0:01:27]}  Rh8 {[%clk 0:00:08]} 30. Na5 {[%clk 0:01:17]}  Ne7 {[%clk 0:00:03]} 31. Kg3 {[%clk 0:01:16]}  Rg8+ {[%clk 0:00:03]} 32. Kf2 {[%clk 0:01:12]}  Rg4 {[%clk 0:00:03]} 33. Rc4 {[%clk 0:01:07]}  e4 {[%clk 0:00:03]} 34. Rd4+ {[%clk 0:01:02]}  Ke6 {[%clk 0:00:03]} 35. Nb7 {[%clk 0:00:59]}  Rxh4 {[%clk 0:00:04]} 36. Nc5+ {[%clk 0:00:59]}  Ke5 {[%clk 0:00:04]} 37. Rd7 {[%clk 0:00:59]}  Nd5 {[%clk 0:00:02]} 38. Kg3 {[%clk 0:00:59]}  Rg4+ {[%clk 0:00:02]} 39. Kh3 {[%clk 0:00:59]}  Nf4# {[%clk 0:00:03]} 0-1


[Site "https://www.chess.com"]